[Event "Titled Tuesday Blitz December 13 Late 2022"]
[White "Mazurkiewicz, Michal"]
[Black "Polster, Christian"]
[WhiteFideId "1124943"]
[BlackFideId "12965081"]
[WhiteElo "2081"]
[BlackElo "2195"]
[Result "1-0"]
[Round "10"]
[TimeControl "180+1"]
[Date "2022.12.14"]
[WhiteClock "0:00:44"]
[BlackClock "0:00:03"]

1. e4 {[%clk 0:03:00]}  c5 {[%clk 0:02:54]} 2. Nf3 {[%clk 0:03:00]}  d6 {[%clk 0:02:47]} 3. g3 {[%clk 0:03:00]}  Nf6 {[%clk 0:02:34]} 4. d3 {[%clk 0:03:00]}  g6 {[%clk 0:02:32]} 5. Bg2 {[%clk 0:03:00]}  Bg7 {[%clk 0:02:32]} 6. O-O {[%clk 0:03:00]}  O-O {[%clk 0:02:33]} 7. Re1 {[%clk 0:03:00]}  Nc6 {[%clk 0:02:33]} 8. e5 {[%clk 0:03:01]}  dxe5 {[%clk 0:02:32]} 9. Nxe5 {[%clk 0:03:02]}  Nxe5 {[%clk 0:02:29]} 10. Rxe5 {[%clk 0:03:03]}  Nd7 {[%clk 0:02:06]} 11. Re1 {[%clk 0:02:59]}  Rb8 {[%clk 0:01:59]} 12. Nd2 {[%clk 0:02:52]}  b6 {[%clk 0:01:57]} 13. Nc4 {[%clk 0:02:52]}  Bb7 {[%clk 0:01:52]} 14. Bf4 {[%clk 0:02:52]}  Bxg2 {[%clk 0:01:51]} 15. Bxb8 {[%clk 0:02:51]}  Ba8 {[%clk 0:01:49]} 16. Bf4 {[%clk 0:02:47]}  e5 {[%clk 0:01:42]} 17. Bd2 {[%clk 0:02:22]}  Qc7 {[%clk 0:01:36]} 18. a4 {[%clk 0:02:12]}  Qc6 {[%clk 0:01:13]} 19. f3 {[%clk 0:02:12]}  Qxf3 {[%clk 0:00:52]} 20. Qxf3 {[%clk 0:02:13]}  Bxf3 {[%clk 0:00:52]} 21. Kf2 {[%clk 0:02:11]}  Bc6 {[%clk 0:00:52]} 22. Bc3 {[%clk 0:02:08]}  Re8 {[%clk 0:00:46]} 23. b3 {[%clk 0:01:43]}  f5 {[%clk 0:00:43]} 24. Re2 {[%clk 0:01:41]}  Re6 {[%clk 0:00:39]} 25. Rae1 {[%clk 0:01:33]}  e4 {[%clk 0:00:38]} 26. Bxg7 {[%clk 0:01:34]}  Kxg7 {[%clk 0:00:39]} 27. h3 {[%clk 0:01:08]}  Ne5 {[%clk 0:00:17]} 28. Nd2 {[%clk 0:00:45]}  Nf3 {[%clk 0:00:03]} 29. Nxf3 {[%clk 0:00:44]} 1-0


[Site "https://www.chess.com"]

[Event "Titled Tuesday Blitz December 13 Late 2022"]
[White "Mieles Palau, Daniel"]
[Black "D`Arruda, Ricardo D."]
[WhiteFideId "3600467"]
[BlackFideId "100692"]
[WhiteElo "2344"]
[BlackElo "2406"]
[Result "0-1"]
[Round "10"]
[TimeControl "180+1"]
[Date "2022.12.14"]
[WhiteClock "0:00:03"]
[BlackClock "0:00:06"]

1. c4 {[%clk 0:03:00]}  e5 {[%clk 0:02:48]} 2. g3 {[%clk 0:03:00]}  Nf6 {[%clk 0:02:47]} 3. Bg2 {[%clk 0:03:00]}  Nc6 {[%clk 0:02:47]} 4. Nc3 {[%clk 0:03:00]}  Bb4 {[%clk 0:02:46]} 5. Nd5 {[%clk 0:03:00]}  Bc5 {[%clk 0:02:46]} 6. e3 {[%clk 0:02:59]}  d6 {[%clk 0:02:46]} 7. Ne2 {[%clk 0:02:59]}  O-O {[%clk 0:02:45]} 8. O-O {[%clk 0:02:58]}  Nxd5 {[%clk 0:02:44]} 9. cxd5 {[%clk 0:02:58]}  Ne7 {[%clk 0:02:45]} 10. d4 {[%clk 0:02:58]}  exd4 {[%clk 0:02:45]} 11. Nxd4 {[%clk 0:02:58]}  Nf5 {[%clk 0:02:45]} 12. Nc2 {[%clk 0:02:47]}  Bd7 {[%clk 0:02:38]} 13. b4 {[%clk 0:02:09]}  Bb6 {[%clk 0:02:36]} 14. Bb2 {[%clk 0:02:09]}  Re8 {[%clk 0:02:29]} 15. a4 {[%clk 0:02:00]}  a5 {[%clk 0:02:27]} 16. b5 {[%clk 0:02:00]}  Qg5 {[%clk 0:02:21]} 17. Rc1 {[%clk 0:01:55]}  h5 {[%clk 0:02:20]} 18. h4 {[%clk 0:01:55]}  Qg6 {[%clk 0:02:19]} 19. Nd4 {[%clk 0:01:53]}  Nxg3 {[%clk 0:01:52]} 20. fxg3 {[%clk 0:01:48]}  Qxg3 {[%clk 0:01:53]} 21. Qf3 {[%clk 0:01:44]}  Qg6 {[%clk 0:01:43]} 22. Kf2 {[%clk 0:01:22]}  Bg4 {[%clk 0:01:37]} 23. Qf4 {[%clk 0:01:18]}  Re5 {[%clk 0:01:34]} 24. Bf3 {[%clk 0:01:11]}  Rae8 {[%clk 0:01:13]} 25. Rce1 {[%clk 0:00:50]}  Bxd4 {[%clk 0:00:46]} 26. Qxd4 {[%clk 0:00:48]}  Rf5 {[%clk 0:00:45]} 27. Ke2 {[%clk 0:00:40]}  Rxf3 {[%clk 0:00:39]} 28. Rxf3 {[%clk 0:00:36]}  Re4 {[%clk 0:00:27]} 29. Qc3 {[%clk 0:00:29]}  Bxf3+ {[%clk 0:00:19]} 30. Kxf3 {[%clk 0:00:30]}  Qg4+ {[%clk 0:00:18]} 31. Kf2 {[%clk 0:00:29]}  Qxh4+ {[%clk 0:00:19]} 32. Ke2 {[%clk 0:00:28]}  Qg4+ {[%clk 0:00:18]} 33. Kd2 {[%clk 0:00:27]}  Rxa4 {[%clk 0:00:18]} 34. Re2 {[%clk 0:00:18]}  Rc4 {[%clk 0:00:17]} 35. Qd3 {[%clk 0:00:12]}  a4 {[%clk 0:00:15]} 36. Bd4 {[%clk 0:00:10]}  Rb4 {[%clk 0:00:15]} 37. Qc2 {[%clk 0:00:07]}  a3 {[%clk 0:00:14]} 38. Rf2 {[%clk 0:00:06]}  Qg5 {[%clk 0:00:08]} 39. Qe4 {[%clk 0:00:04]}  a2 {[%clk 0:00:07]} 40. Qe8+ {[%clk 0:00:04]}  Kh7 {[%clk 0:00:08]} 41. Qe4+ {[%clk 0:00:04]}  Qg6 {[%clk 0:00:05]} 42. Qxg6+ {[%clk 0:00:04]}  Kxg6 {[%clk 0:00:06]} 43. Rg2+ {[%clk 0:00:03]}  Kf5 {[%clk 0:00:06]} 44. Kd3 {[%clk 0:00:03]}  Rxd4+ {[%clk 0:00:06]} 0-1


[Site "https://www.chess.com"]

[Event "Titled Tuesday Blitz December 13 Late 2022"]
[White "Musovic, Armin"]
[Black "Silvestre, Christian"]
[WhiteFideId "939935"]
[BlackFideId "30956269"]
[WhiteElo "2288"]
[BlackElo "2373"]
[Result "1-0"]
[Round "10"]
[TimeControl "180+1"]
[Date "2022.12.14"]
[WhiteClock "0:01:36"]
[BlackClock "0:01:55"]

1. a3 {[%clk 0:03:00]}  e5 {[%clk 0:02:52]} 2. Nc3 {[%clk 0:03:01]}  Nf6 {[%clk 0:02:50]} 3. d4 {[%clk 0:03:02]}  exd4 {[%clk 0:02:49]} 4. Qxd4 {[%clk 0:03:03]}  Nc6 {[%clk 0:02:49]} 5. Qa4 {[%clk 0:03:03]}  Bc5 {[%clk 0:02:47]} 6. Bg5 {[%clk 0:03:03]}  h6 {[%clk 0:02:46]} 7. Bh4 {[%clk 0:03:04]}  O-O {[%clk 0:02:44]} 8. O-O-O {[%clk 0:03:04]}  Be7 {[%clk 0:02:42]} 9. e3 {[%clk 0:03:03]}  d6 {[%clk 0:02:42]} 10. Nf3 {[%clk 0:03:03]}  Be6 {[%clk 0:02:40]} 11. Bd3 {[%clk 0:03:02]}  a6 {[%clk 0:02:39]} 12. Qf4 {[%clk 0:02:53]}  b5 {[%clk 0:02:37]} 13. Bxf6 {[%clk 0:02:51]}  Bxf6 {[%clk 0:02:36]} 14. Qe4 {[%clk 0:02:52]}  g6 {[%clk 0:02:26]} 15. Qxc6 {[%clk 0:02:52]}  b4 {[%clk 0:02:25]} 16. axb4 {[%clk 0:02:52]}  Rb8 {[%clk 0:02:25]} 17. Nd5 {[%clk 0:02:36]}  Bxd5 {[%clk 0:02:22]} 18. Qxd5 {[%clk 0:02:36]}  Rxb4 {[%clk 0:02:22]} 19. c3 {[%clk 0:02:36]}  Rb6 {[%clk 0:02:21]} 20. h4 {[%clk 0:02:35]}  Qb8 {[%clk 0:02:21]} 21. Rd2 {[%clk 0:02:34]}  c6 {[%clk 0:02:17]} 22. Qa2 {[%clk 0:02:32]}  h5 {[%clk 0:02:13]} 23. Bxg6 {[%clk 0:02:32]}  Kg7 {[%clk 0:02:13]} 24. Bxh5 {[%clk 0:02:23]}  d5 {[%clk 0:02:10]} 25. Rh3 {[%clk 0:02:22]}  a5 {[%clk 0:02:07]} 26. Rg3+ {[%clk 0:02:23]}  Kh6 {[%clk 0:02:05]} 27. Qb1 {[%clk 0:02:05]}  Rg8 {[%clk 0:02:03]} 28. Qf5 {[%clk 0:01:57]}  c5 {[%clk 0:01:56]} 29. Rxg8 {[%clk 0:01:47]}  Qxg8 {[%clk 0:01:57]} 30. Bg4 {[%clk 0:01:37]}  Qg7 {[%clk 0:01:55]} 31. Qh5# {[%clk 0:01:36]} 1-0


[Site "https://www.chess.com"]

[Event "Titled Tuesday Blitz December 13 Late 2022"]
[White "O`Gorman, Tom"]
[Black "Forgacs, Attila Jr."]
[WhiteFideId "2508249"]
[BlackFideId "773654"]
[WhiteElo "2271"]
[BlackElo "2168"]
[Result "1-0"]
[Round "10"]
[TimeControl "180+1"]
[Date "2022.12.13"]
[WhiteClock "0:01:37"]
[BlackClock "0:00:34"]

1. e4 {[%clk 0:03:00]}  e5 {[%clk 0:03:00]} 2. Nf3 {[%clk 0:03:00]}  Nc6 {[%clk 0:03:00]} 3. Bb5 {[%clk 0:03:00]}  a6 {[%clk 0:02:59]} 4. Ba4 {[%clk 0:03:00]}  Nf6 {[%clk 0:02:59]} 5. O-O {[%clk 0:02:59]}  Be7 {[%clk 0:02:59]} 6. Re1 {[%clk 0:03:00]}  b5 {[%clk 0:02:59]} 7. Bb3 {[%clk 0:02:59]}  O-O {[%clk 0:03:00]} 8. h3 {[%clk 0:02:56]}  Bb7 {[%clk 0:03:00]} 9. d3 {[%clk 0:02:55]}  d5 {[%clk 0:02:49]} 10. exd5 {[%clk 0:02:51]}  Nxd5 {[%clk 0:02:50]} 11. Nxe5 {[%clk 0:02:51]}  Nxe5 {[%clk 0:02:51]} 12. Rxe5 {[%clk 0:02:51]}  Qd6 {[%clk 0:02:48]} 13. Re1 {[%clk 0:02:36]}  Qg6 {[%clk 0:02:36]} 14. Qf3 {[%clk 0:02:28]}  Qd6 {[%clk 0:01:34]} 15. Nc3 {[%clk 0:02:17]}  Nxc3 {[%clk 0:01:12]} 16. Qxb7 {[%clk 0:02:15]}  Bf6 {[%clk 0:00:54]} 17. bxc3 {[%clk 0:02:01]}  c6 {[%clk 0:00:54]} 18. Bd2 {[%clk 0:01:43]}  Rfb8 {[%clk 0:00:50]} 19. Qxf7+ {[%clk 0:01:42]}  Kh8 {[%clk 0:00:48]} 20. Qe6 {[%clk 0:01:42]}  Qc5 {[%clk 0:00:47]} 21. d4 {[%clk 0:01:41]}  Qh5 {[%clk 0:00:45]} 22. Qg4 {[%clk 0:01:40]}  Qxg4 {[%clk 0:00:38]} 23. hxg4 {[%clk 0:01:41]}  b4 {[%clk 0:00:39]} 24. cxb4 {[%clk 0:01:37]}  Bxd4 {[%clk 0:00:38]} 25. c3 {[%clk 0:01:38]}  Bb6 {[%clk 0:00:37]} 26. Be3 {[%clk 0:01:38]}  Bc7 {[%clk 0:00:35]} 27. Bd4 {[%clk 0:01:37]}  a5 {[%clk 0:00:34]} 28. Re7 {[%clk 0:01:37]} 1-0


[Site "https://www.chess.com"]

[Event "Titled Tuesday Blitz December 13 Late 2022"]
[White "Papp, Levente"]
[Black "Korchmar, Vasiliy"]
[WhiteFideId "751243"]
[BlackFideId "24131750"]
[WhiteElo "2380"]
[BlackElo "2370"]
[Result "1-0"]
[Round "10"]
[TimeControl "180+1"]
[Date "2022.12.13"]
[WhiteClock "0:00:06"]
[BlackClock "0:00:06"]

1. Nf3 {[%clk 0:03:00]}  d5 {[%clk 0:02:59]} 2. g3 {[%clk 0:03:00]}  g6 {[%clk 0:02:59]} 3. c4 {[%clk 0:02:59]}  c6 {[%clk 0:02:58]} 4. cxd5 {[%clk 0:02:53]}  cxd5 {[%clk 0:02:59]} 5. d4 {[%clk 0:02:53]}  Nf6 {[%clk 0:02:56]} 6. Bg2 {[%clk 0:02:53]}  Bg7 {[%clk 0:02:56]} 7. O-O {[%clk 0:02:54]}  O-O {[%clk 0:02:56]} 8. Ne5 {[%clk 0:02:53]}  Ng4 {[%clk 0:02:56]} 9. Nxg4 {[%clk 0:02:50]}  Bxg4 {[%clk 0:02:56]} 10. Nc3 {[%clk 0:02:49]}  Nc6 {[%clk 0:02:57]} 11. h3 {[%clk 0:02:42]}  Bd7 {[%clk 0:02:56]} 12. e3 {[%clk 0:02:37]}  e6 {[%clk 0:02:55]} 13. Bd2 {[%clk 0:02:31]}  Rc8 {[%clk 0:02:54]} 14. Rc1 {[%clk 0:02:31]}  h5 {[%clk 0:02:37]} 15. h4 {[%clk 0:02:27]}  Qe7 {[%clk 0:02:25]} 16. Qe2 {[%clk 0:02:16]}  a6 {[%clk 0:02:23]} 17. a3 {[%clk 0:01:59]}  Rc7 {[%clk 0:02:19]} 18. Qd1 {[%clk 0:01:33]}  Rfc8 {[%clk 0:02:17]} 19. Na4 {[%clk 0:01:33]}  Na7 {[%clk 0:01:38]} 20. Rxc7 {[%clk 0:01:05]}  Rxc7 {[%clk 0:01:39]} 21. Bb4 {[%clk 0:01:03]}  Qe8 {[%clk 0:01:35]} 22. Nc5 {[%clk 0:00:56]}  Bb5 {[%clk 0:01:34]} 23. Re1 {[%clk 0:00:50]}  b6 {[%clk 0:01:33]} 24. Nd3 {[%clk 0:00:46]}  Nc6 {[%clk 0:01:21]} 25. Bc3 {[%clk 0:00:46]}  Ne7 {[%clk 0:01:12]} 26. Bf1 {[%clk 0:00:42]}  Nf5 {[%clk 0:01:12]} 27. Nf4 {[%clk 0:00:32]}  Nd6 {[%clk 0:01:11]} 28. Bb4 {[%clk 0:00:30]}  Ne4 {[%clk 0:01:07]} 29. Bd3 {[%clk 0:00:26]}  a5 {[%clk 0:01:04]} 30. Bxe4 {[%clk 0:00:21]}  axb4 {[%clk 0:00:56]} 31. Bd3 {[%clk 0:00:21]}  bxa3 {[%clk 0:00:52]} 32. bxa3 {[%clk 0:00:21]}  Rc3 {[%clk 0:00:43]} 33. Bxb5 {[%clk 0:00:18]}  Qxb5 {[%clk 0:00:44]} 34. a4 {[%clk 0:00:17]}  Qa6 {[%clk 0:00:40]} 35. Qb1 {[%clk 0:00:16]}  Ra3 {[%clk 0:00:38]} 36. Rc1 {[%clk 0:00:10]}  Rxa4 {[%clk 0:00:33]} 37. Nxg6 {[%clk 0:00:10]}  fxg6 {[%clk 0:00:17]} 38. Qxg6 {[%clk 0:00:11]}  Qb7 {[%clk 0:00:16]} 39. Qxe6+ {[%clk 0:00:10]}  Kh7 {[%clk 0:00:14]} 40. Qf5+ {[%clk 0:00:08]}  Kh6 {[%clk 0:00:12]} 41. Rc8 {[%clk 0:00:06]}  Ra1+ {[%clk 0:00:10]} 42. Kg2 {[%clk 0:00:07]}  Qe7 {[%clk 0:00:06]} 43. Rc6+ {[%clk 0:00:06]} 1-0


[Site "https://www.chess.com"]

[Event "Titled Tuesday Blitz December 13 Late 2022"]
[White "Prieto Aranguren, Alain"]
[Black "Arbunic Castro, Giovanna"]
[WhiteFideId "2268906"]
[BlackFideId "3400549"]
[WhiteElo "2209"]
[BlackElo "1957"]
[Result "1-0"]
[Round "10"]
[TimeControl "180+1"]
[Date "2022.12.14"]
[WhiteClock "0:00:45"]
[BlackClock "0:00:06"]

1. e4 {[%clk 0:02:56]}  g6 {[%clk 0:02:56]} 2. h4 {[%clk 0:02:55]}  h5 {[%clk 0:02:55]} 3. Nh3 {[%clk 0:02:55]}  Bg7 {[%clk 0:02:54]} 4. Ng5 {[%clk 0:02:55]}  d6 {[%clk 0:02:52]} 5. Bc4 {[%clk 0:02:52]}  e6 {[%clk 0:02:49]} 6. Qf3 {[%clk 0:02:49]}  Nf6 {[%clk 0:02:48]} 7. d3 {[%clk 0:02:49]}  O-O {[%clk 0:02:46]} 8. Nc3 {[%clk 0:02:46]}  c6 {[%clk 0:02:46]} 9. Bb3 {[%clk 0:02:46]}  d5 {[%clk 0:02:41]} 10. e5 {[%clk 0:02:46]}  Ng4 {[%clk 0:02:39]} 11. d4 {[%clk 0:02:42]}  c5 {[%clk 0:02:38]} 12. Nxd5 {[%clk 0:02:26]}  cxd4 {[%clk 0:02:23]} 13. Nf6+ {[%clk 0:02:12]}  Bxf6 {[%clk 0:02:20]} 14. exf6 {[%clk 0:02:11]}  Qxf6 {[%clk 0:02:19]} 15. Qg3 {[%clk 0:01:56]}  Nc6 {[%clk 0:01:58]} 16. O-O {[%clk 0:01:54]}  e5 {[%clk 0:01:51]} 17. Bd2 {[%clk 0:01:42]}  Be6 {[%clk 0:01:46]} 18. Bxe6 {[%clk 0:01:38]}  fxe6 {[%clk 0:01:44]} 19. Rae1 {[%clk 0:01:36]}  Rad8 {[%clk 0:01:05]} 20. Qb3 {[%clk 0:01:29]}  Rd6 {[%clk 0:00:51]} 21. Qxb7 {[%clk 0:01:27]}  Qe7 {[%clk 0:00:44]} 22. Qxe7 {[%clk 0:01:17]}  Nxe7 {[%clk 0:00:42]} 23. f3 {[%clk 0:01:16]}  Ne3 {[%clk 0:00:31]} 24. Bxe3 {[%clk 0:01:15]}  dxe3 {[%clk 0:00:30]} 25. Rxe3 {[%clk 0:01:15]}  Rf5 {[%clk 0:00:28]} 26. Rfe1 {[%clk 0:01:11]}  Rc6 {[%clk 0:00:25]} 27. c3 {[%clk 0:01:09]}  Rc5 {[%clk 0:00:24]} 28. Rd1 {[%clk 0:01:04]}  Rd5 {[%clk 0:00:21]} 29. Red3 {[%clk 0:00:59]}  Rxd3 {[%clk 0:00:17]} 30. Rxd3 {[%clk 0:00:59]}  Nd5 {[%clk 0:00:18]} 31. Nxe6 {[%clk 0:00:56]}  Nf4 {[%clk 0:00:17]} 32. Nxf4 {[%clk 0:00:55]}  exf4 {[%clk 0:00:17]} 33. Rd8+ {[%clk 0:00:51]}  Kg7 {[%clk 0:00:14]} 34. Rd7+ {[%clk 0:00:51]}  Kf6 {[%clk 0:00:14]} 35. Rxa7 {[%clk 0:00:50]}  Rb5 {[%clk 0:00:13]} 36. b4 {[%clk 0:00:49]}  Ke5 {[%clk 0:00:13]} 37. Ra5 {[%clk 0:00:48]}  Rxa5 {[%clk 0:00:09]} 38. bxa5 {[%clk 0:00:46]}  Kd5 {[%clk 0:00:09]} 39. g3 {[%clk 0:00:44]}  fxg3 {[%clk 0:00:07]} 40. Kg2 {[%clk 0:00:45]}  Kc5 {[%clk 0:00:07]} 41. Kxg3 {[%clk 0:00:45]}  Kb5 {[%clk 0:00:07]} 42. Kf4 {[%clk 0:00:45]}  Kxa5 {[%clk 0:00:06]} 43. Kg5 {[%clk 0:00:45]} 1-0


[Site "https://www.chess.com"]

[Event "Titled Tuesday Blitz December 13 Late 2022"]
[White "Romero Ruscalleda, Josep"]
[Black "Fernandez Garcia, Gumersindo"]
[WhiteFideId "2231859"]
[BlackFideId "24516740"]
[WhiteElo "2183"]
[BlackElo "2140"]
[Result "0-1"]
[Round "10"]
[TimeControl "180+1"]
[Date "2022.12.14"]
[WhiteClock "0:00:48"]
[BlackClock "0:01:40"]

1. e4 {[%clk 0:03:00]}  e6 {[%clk 0:02:54]} 2. d4 {[%clk 0:03:00]}  a6 {[%clk 0:02:55]} 3. a4 {[%clk 0:02:56]}  Nf6 {[%clk 0:02:54]} 4. e5 {[%clk 0:02:52]}  Nd5 {[%clk 0:02:54]} 5. Nf3 {[%clk 0:02:53]}  d6 {[%clk 0:02:53]} 6. exd6 {[%clk 0:02:47]}  Bxd6 {[%clk 0:02:52]} 7. c3 {[%clk 0:02:47]}  b6 {[%clk 0:02:51]} 8. Bd3 {[%clk 0:02:47]}  Bb7 {[%clk 0:02:51]} 9. O-O {[%clk 0:02:47]}  Nd7 {[%clk 0:02:52]} 10. Nbd2 {[%clk 0:02:45]}  N7f6 {[%clk 0:02:52]} 11. Nc4 {[%clk 0:02:44]}  O-O {[%clk 0:02:50]} 12. Nxd6 {[%clk 0:02:43]}  Qxd6 {[%clk 0:02:50]} 13. Bg5 {[%clk 0:02:41]}  h6 {[%clk 0:02:49]} 14. Bh4 {[%clk 0:02:42]}  c5 {[%clk 0:02:49]} 15. Bg3 {[%clk 0:02:41]}  Qe7 {[%clk 0:02:49]} 16. Re1 {[%clk 0:02:37]}  Rfd8 {[%clk 0:02:47]} 17. Qb3 {[%clk 0:02:28]}  Rac8 {[%clk 0:02:44]} 18. Rad1 {[%clk 0:02:21]}  Nh5 {[%clk 0:02:38]} 19. dxc5 {[%clk 0:02:07]}  bxc5 {[%clk 0:02:35]} 20. Be5 {[%clk 0:01:52]}  Ndf4 {[%clk 0:02:24]} 21. Bf1 {[%clk 0:01:50]}  Bxf3 {[%clk 0:02:22]} 22. gxf3 {[%clk 0:01:44]}  Rxd1 {[%clk 0:02:17]} 23. Rxd1 {[%clk 0:01:39]}  Qg5+ {[%clk 0:02:14]} 24. Kh1 {[%clk 0:01:39]}  Qxe5 {[%clk 0:02:14]} 25. Qb7 {[%clk 0:01:36]}  Rf8 {[%clk 0:02:12]} 26. Bxa6 {[%clk 0:01:32]}  Qg5 {[%clk 0:02:07]} 27. Bf1 {[%clk 0:01:32]}  Qh4 {[%clk 0:02:06]} 28. Rd2 {[%clk 0:01:21]}  Rd8 {[%clk 0:01:56]} 29. Rd7 {[%clk 0:00:59]}  Rxd7 {[%clk 0:01:53]} 30. Qxd7 {[%clk 0:00:58]}  Qxf2 {[%clk 0:01:53]} 31. Qd1 {[%clk 0:00:57]}  Nd5 {[%clk 0:01:44]} 32. a5 {[%clk 0:00:52]}  Ne3 {[%clk 0:01:42]} 33. Qd8+ {[%clk 0:00:51]}  Kh7 {[%clk 0:01:42]} 34. Qd3+ {[%clk 0:00:51]}  f5 {[%clk 0:01:42]} 35. a6 {[%clk 0:00:48]}  Nxf1 {[%clk 0:01:40]} 0-1


[Site "https://www.chess.com"]

[Event "Titled Tuesday Blitz December 13 Late 2022"]
[White "Rustemov, Alexander"]
[Black "Sjugirov, Sanan"]
[WhiteFideId "4119002"]
[BlackFideId "4189302"]
[WhiteElo "2784"]
[BlackElo "2613"]
[Result "1/2-1/2"]
[Round "10"]
[TimeControl "180+1"]
[Date "2022.12.13"]
[WhiteClock "0:01:09"]
[BlackClock "0:00:18"]

1. d4 {[%clk 0:03:00]}  Nf6 {[%clk 0:03:00]} 2. c4 {[%clk 0:03:01]}  e6 {[%clk 0:03:00]} 3. Nf3 {[%clk 0:03:02]}  d5 {[%clk 0:03:00]} 4. Nc3 {[%clk 0:03:02]}  c6 {[%clk 0:03:00]} 5. e3 {[%clk 0:03:02]}  Nbd7 {[%clk 0:03:01]} 6. Qc2 {[%clk 0:03:03]}  Bd6 {[%clk 0:03:01]} 7. b3 {[%clk 0:03:03]}  O-O {[%clk 0:03:01]} 8. Be2 {[%clk 0:03:04]}  b6 {[%clk 0:03:01]} 9. O-O {[%clk 0:03:05]}  Bb7 {[%clk 0:03:02]} 10. Bb2 {[%clk 0:03:05]}  Re8 {[%clk 0:03:02]} 11. Rad1 {[%clk 0:03:05]}  Qc7 {[%clk 0:03:02]} 12. e4 {[%clk 0:02:51]}  dxe4 {[%clk 0:03:01]} 13. Nxe4 {[%clk 0:02:52]}  Nxe4 {[%clk 0:03:01]} 14. Qxe4 {[%clk 0:02:52]}  c5 {[%clk 0:02:44]} 15. Qh4 {[%clk 0:02:51]}  Be7 {[%clk 0:02:41]} 16. Qg3 {[%clk 0:02:47]}  Qxg3 {[%clk 0:02:38]} 17. hxg3 {[%clk 0:02:47]}  Rad8 {[%clk 0:02:35]} 18. Ne5 {[%clk 0:02:35]}  cxd4 {[%clk 0:02:29]} 19. Nxd7 {[%clk 0:02:26]}  Rxd7 {[%clk 0:02:30]} 20. Rxd4 {[%clk 0:02:25]}  Rxd4 {[%clk 0:02:21]} 21. Bxd4 {[%clk 0:02:26]}  Rd8 {[%clk 0:02:22]} 22. Rd1 {[%clk 0:02:26]}  Bc5 {[%clk 0:02:15]} 23. Bc3 {[%clk 0:02:24]}  Rxd1+ {[%clk 0:02:13]} 24. Bxd1 {[%clk 0:02:24]}  a5 {[%clk 0:02:14]} 25. g4 {[%clk 0:02:22]}  Be4 {[%clk 0:02:11]} 26. Bb2 {[%clk 0:02:16]}  f6 {[%clk 0:02:00]} 27. Kf1 {[%clk 0:02:17]}  Bd3+ {[%clk 0:01:57]} 28. Kg1 {[%clk 0:02:00]}  e5 {[%clk 0:01:56]} 29. g3 {[%clk 0:01:58]}  e4 {[%clk 0:01:51]} 30. Kg2 {[%clk 0:01:54]}  Kf7 {[%clk 0:01:50]} 31. Bc1 {[%clk 0:01:39]}  g5 {[%clk 0:01:45]} 32. a3 {[%clk 0:01:29]}  Ke6 {[%clk 0:01:43]} 33. Bb2 {[%clk 0:01:29]}  f5 {[%clk 0:01:22]} 34. gxf5+ {[%clk 0:01:28]}  Kxf5 {[%clk 0:01:23]} 35. g4+ {[%clk 0:01:28]}  Kf4 {[%clk 0:01:03]} 36. Bc1+ {[%clk 0:01:21]}  e3 {[%clk 0:01:04]} 37. b4 {[%clk 0:01:19]}  axb4 {[%clk 0:00:45]} 38. axb4 {[%clk 0:01:20]}  Bd4 {[%clk 0:00:45]} 39. c5 {[%clk 0:01:15]}  bxc5 {[%clk 0:00:43]} 40. bxc5 {[%clk 0:01:15]}  Be4+ {[%clk 0:00:35]} 41. Kh3 {[%clk 0:01:08]}  Bxc5 {[%clk 0:00:20]} 42. Bxe3+ {[%clk 0:01:07]}  Bxe3 {[%clk 0:00:20]} 43. fxe3+ {[%clk 0:01:08]}  Kxe3 {[%clk 0:00:21]} 44. Kg3 {[%clk 0:01:09]}  Bd3 {[%clk 0:00:18]} 1/2-1/2


[Site "https://www.chess.com"]